Cogmind - Beta 13 @@@ ROGUE MODE // 2024.05.08 @ 01:15:20 Player: P9H Result: Destroyed by Y-45 Defender with Beam Rifle Performance ------------- Evolutions (1) 500 Regions Visited (3) 600 Robots Destroyed (23) 115 Value Destroyed (530) 530 Prototype IDs (2) 40 Alien Tech Used (0) 0 Bonus (0) 0 TOTAL SCORE: 1785 Bonus ------- None Cogmind --------- Core Integrity 0/400 Matter 290/300 Energy 80/100 System Corruption 11% Temperature Cool (9) Movement Core (250) Ox4 Location -9/Materials Parts ------- > --- POWER (2) -------- (None) > --- PROPULSION (2) --- (None) > --- UTILITY (3) ------ Medium Storage Unit > --- WEAPON (2) ------- Improved Light Cannon > --- INVENTORY (10) --- Light Ion Engine Nuclear Core Nuclear Core Target Analyzer Target Analyzer Peak State ------------ > --- POWER ------------ Nuclear Core Nuclear Core > --- PROPULSION ------- Light Treads Light Treads > --- UTILITY ---------- Medium Storage Unit Large Matter Pod Light Armor Plating > --- WEAPON ----------- EM Pulse Gun Assault Rifle > --- INVENTORY -------- Ion Engine Nuclear Core Aluminum Leg Aluminum Leg Flight Unit Flight Unit Flight Unit Light Assault Rifle Light Assault Rifle Improved Light Cannon [Rating: 14] Favorites ----------- Power Ion Engine Engine Ion Engine Power Core Nuclear Core Propulsion Light Treads Treads Light Treads Leg Aluminum Leg Wheel Wheel Flight Unit Flight Unit Utility Medium Storage Unit Device Weight Redist. System Storage Medium Storage Unit Protection Light Armor Plating Weapon Assault Rifle Energy Gun Small Laser Ballistic Gun Assault Rifle Ballistic Cannon Improved Light Cannon Launcher Grenade Launcher Build | -11 -10 -10 -9 ------- Run | Yrd Mat Min Mat Slots Evolved 2 | . . . 2 Power 1 | . . . 1 Propulsion . | . . . . Utility 1 | . . . 1 Weapon . | . . . . Parts Attached 36 | 7 2 1 26 Power 7 | 1 1 . 5 Engine 5 | 1 1 . 3 Core 2 | . . . 2 Reactor . | . . . . Propulsion 13 | 2 . . 11 Treads 6 | 2 . . 4 Leg 2 | . . . 2 Wheel 2 | . . . 2 Hover . | . . . . Flight 3 | . . . 3 Utility 5 | 1 1 1 2 Device 1 | . . . 1 Storage 3 | 1 1 1 . Processor . | . . . . Hackware . | . . . . Protection 1 | . . . 1 Artifact . | . . . . Weapon 11 | 3 . . 8 Energy Gun 4 | 2 . . 2 Energy Cannon . | . . . . Ballistic Gun 3 | 1 . . 2 Ballistic Cannon 2 | . . . 2 Launcher 2 | . . . 2 Special Weapon . | . . . . Impact Weapon . | . . . . Slashing Weapon . | . . . . Piercing Weapon . | . . . . Special Melee Weapon . | . . . . Unidentified Prototypes . | . . . . Parts Lost 17 | . 1 . 16 Power 5 | . 1 . 4 Propulsion 4 | . . . 4 Utility 2 | . . . 2 Weapon 6 | . . . 6 Highest Loss Streak 10 | . 1 . 10 To Critical Strikes . | . . . . Average Slot Usage (%) 89 | . 82 100 89 Engine 13 | . 11 14 14 Core 2 | . . . 4 Treads 18 | . 28 28 10 Leg 2 | . . . 5 Wheel 1 | . . . 3 Device 1 | . . . 2 Storage 21 | . 14 28 22 Protection 2 | . . . 4 Energy Gun 10 | . 14 14 7 Ballistic Gun 12 | . 14 14 11 Naked Turns . | . . . . Heaviest Build 34 | 11 18 21 34 Greatest Support 46 | 40 40 40 46 Greatest Overweight (x) 8 | 1 . . 8 Average Overweight (x) . | . . . . Largest Inventory Capacity 10 | 8 10 10 10 Average Capacity 9 | 7 8 10 10 Most Carried 10 | 5 7 8 10 Average Carried 6 | 3 4 6 8 Final Capacity 10 | 8 10 10 10 Final Carried 8 | 4 5 8 5 Class Distribution -------------------- 94% | Mutant 5% | Scavenger-Mutant Dominant Class ---------------- Mutant | -10/Materials Mutant | -10/Mines Mutant | -9/Materials Resources | -11 -10 -10 -9 ----------- Run | Yrd Mat Min Mat Matter Collected 582 | 190 155 36 201 Remotely . | . . . . Salvage Created 614 | . 242 58 314 Parts 54 | . 18 7 29 Haulers Intercepted . | . . . . Recyclers Shooed 2 | . . 2 . Parts Field Recycled . | . . . . Retrieved Matter . | . . . . Parts Self-Destructed . | . . . . Prevented . | . . . . Kills | -11 -10 -10 -9 ------- Run | Yrd Mat Min Mat Combat Hostiles Destroyed 20 | . 6 3 11 Guns 17 | . 6 3 8 AOE 3 | . . . 3 Classes Destroyed 5 | . 1 1 3 Worker 1 | . . . 1 Watcher 2 | . . . 2 Swarmer 10 | . . 3 7 Grunt 6 | . 6 . . Sentry 4 | . . . 4 Best Kill Streak 5 | . 3 3 5 Combat Bots Only 4 | . 3 3 4 Max Kills in Single Turn 2 | . 1 1 2 Gunslinging . | . . . . Exploded 2 | . . . 2 Melee . | . . . . Uniques/NPCs Destroyed . | . . . . Combat | -11 -10 -10 -9 -------- Run | Yrd Mat Min Mat Hostile Shots Fired 172 | . 22 15 135 Missed 42 | . 5 1 36 Damage Taken 1954 | . 212 124 1618 Core 444 | . 26 17 401 Absorbed by Shields . | . . . . Core Remaining (%) 91 | 100 . 82 . Volleys Fired 86 | 1 19 11 55 Largest 2 | 2 2 2 2 Hottest 79 | 60 60 60 79 Shots Fired 157 | 2 37 22 96 Gun 143 | 2 37 22 82 Cannon 9 | . . . 9 Launcher 5 | . . . 5 Special . | . . . . Kinetic 89 | 1 19 11 58 Thermal 35 | 1 18 11 5 Explosive 5 | . . . 5 Electromagnetic 28 | . . . 28 Robot Hit Streak 9 | 2 7 5 9 Robot Miss Streak 6 | . 4 6 4 Penetration Max . | . . . . Secondary Targets 2 | . . 2 . Max Gunslinging Chain 1 | . . 1 . Shots Hit Robots 97 | 2 23 8 64 Core Hits 43 | 1 13 3 26 Critical Kills 1 | . . . 1 Critical Parts Destroyed 1 | . . . 1 Critical Strikes 2 | . . . 2 Destroy 2 | . . . 2 Melee Attacks . | . . . . Impact . | . . . . Slashing . | . . . . Piercing . | . . . . Sneak Attacks . | . . . . Combat Hostiles . | . . . . Follow-up Attacks . | . . . . Damage Inflicted 1457 | 21 278 123 1035 Guns 966 | 21 278 104 563 Cannons 122 | . . . 122 Explosions 296 | . . . 296 Melee . | . . . . Ramming 73 | . . 19 54 Kinetic 663 | 10 142 54 457 Thermal 364 | 11 136 50 167 Explosive 141 | . . . 141 Electromagnetic 216 | . . . 216 Impact . | . . . . Slashing . | . . . . Piercing . | . . . . Highest Corruption . | . . . . Average Corruption . | . . . . Corruption Purged . | . . . . Corruption Blocked . | . . . . Overload Shots . | . . . . Overflow Damage 1 | . . . 1 Projectiles . | . . . . Explosions 1 | . . . 1 Melee . | . . . . Knockbacks . | . . . . Impact . | . . . . Kinetic . | . . . . Secondary . | . . . . Self-Inflicted Damage 165 | . . . 165 Shots 5 | . . . 5 Rammed 8 | . . 7 1 Targets Rammed 31 | . . 7 24 Kicked 23 | . . . 23 Crushed . | . . . . Highest Temperature 364 | . 63 . 364 Average Temperature 83 | . 21 . 100 Received Heat Transfer 576 | . 117 . 459 Effects 4 | . . . 4 Shutdowns 2 | . . . 2 Energy Bleed 1 | . . . 1 Damage (minor) 1 | . . . 1 Siege Activations . | . . . . Robots Corrupted . | . . . . Combat Hostiles . | . . . . Parts Fried . | . . . . Impact Corruptions . | . . . . Robots Melted . | . . . . Combat Hostiles . | . . . . Parts Melted . | . . . . Heat Transferred 675 | 25 300 125 225 Parts Sabotaged . | . . . . Parts Stolen . | . . . . Parts Stripped . | . . . . Power Chain Reactions 2 | . . . 2 Alert | -11 -10 -10 -9 ------- Run | Yrd Mat Min Mat Peak Influence 327 | . 194 145 327 Initial 75 | . . 75 56 Average 103 | . 95 124 164 Maximum Alert Level 1 | . . . 1 Low Security (%) 86 | 100 100 100 66 Level 1 13 | . . . 33 Level 2 . | . . . . Level 3 . | . . . . Level 4 . | . . . . Level 5 . | . . . . High Security . | . . . . Max Security . | . . . . Squads Dispatched 2 | . 2 . . Investigation 1 | . 1 . . Extermination . | . . . . Reinforcement 1 | . 1 . . Assault . | . . . . Garrison . | . . . . Intercept . | . . . . Searches Triggered . | . . . . Construction Impeded . | . . . . Haulers Reinforced . | . . . . Active Scanning Responses . | . . . . Cargo Convoy Interrupts . | . . . . Stealth | -11 -10 -10 -9 --------- Run | Yrd Mat Min Mat Distress Signals 2 | . . 1 1 Communications Jammed . | . . . . Distress Signals . | . . . . Times Spotted 27 | . 8 3 16 Peak Tracking Total 6 | . 6 3 6 Tactical Retreats 2 | . 1 . 1 Traps | -11 -10 -10 -9 ------- Run | Yrd Mat Min Mat Traps Triggered 1 | . 1 . . Indirectly . | . . . . Trap Hack Attempts . | . . . . Triggered . | . . . . Disarmed . | . . . . Reprogrammed . | . . . . Reused . | . . . . Traps Extracted . | . . . . Installed . | . . . . Triggered . | . . . . Machines | -11 -10 -10 -9 ---------- Run | Yrd Mat Min Mat Machines Disabled . | . . . . Max in Single Turn . | . . . . Machines Repaired . | . . . . Machines Dismantled . | . . . . Machines Sabotaged . | . . . . Overloaded Fab Kills . | . . . . Hacking | -11 -10 -10 -9 --------- Run | Yrd Mat Min Mat Machines Accessed 2 | . 1 . 1 Terminals 2 | . 1 . 1 Fabricators . | . . . . Repair Stations . | . . . . Recycling Units . | . . . . Scanalyzers . | . . . . Garrison Access . | . . . . Total Hacks 5 | . 4 . 1 Successful 3 | . 2 . 1 Failed 2 | . 2 . . Catastrophic . | . . . . Database Lockouts . | . . . . Manual . | . . . . Terminals 5 | . 4 . 1 Fabricators . | . . . . Repair Stations . | . . . . Recycling Units . | . . . . Scanalyzers . | . . . . Garrison Access . | . . . . Terminal Hacks 3 | . 2 . 1 Prototype ID Bank 1 | . . . 1 Alert Level 1 | . 1 . . Locate Traps 1 | . 1 . . Fabricator Hacks . | . . . . Repair Station Hacks . | . . . . Recycling Unit Hacks . | . . . . Scanalyzer . | . . . . Garrison Access Hacks . | . . . . Unauthorized Hacks . | . . . . Terminals . | . . . . Fabricators . | . . . . Repair Stations . | . . . . Recycling Units . | . . . . Scanalyzers . | . . . . Garrison Access . | . . . . Data Cores Recovered . | . . . . Used . | . . . . Hacking Detections 1 | . 1 . . Full Trace Events . | . . . . Feedback Events . | . . . . Feedback Blocked . | . . . . Robot Schematics Acquired . | . . . . Robots Built . | . . . . Authchips . | . . . . Time . | . . . . Total Robot Build Rating . | . . . . Part Schematics Acquired . | . . . . Parts Built . | . . . . Authchips . | . . . . Time . | . . . . Total Part Build Rating . | . . . . Parts Repaired . | . . . . Time . | . . . . Parts Recycled . | . . . . Recycled Matter . | . . . . Retrieved Matter . | . . . . Retrieved Components . | . . . . Parts Scanalyzed . | . . . . Part Schematics Acquired . | . . . . Parts Damaged . | . . . . Bothacking | -11 -10 -10 -9 ------------ Run | Yrd Mat Min Mat Used RIF Installer . | . . . . Robots Hacked . | . . . . Non-combat . | . . . . Combat . | . . . . Robot Hacks Applied . | . . . . Relay Couplers Released . | . . . . Fabnet Peak Effective % . | . . . . Robots Rewired . | . . . . Allies Hacked . | . . . . Hacks Repelled . | . . . . Allies | -11 -10 -10 -9 -------- Run | Yrd Mat Min Mat Total Allies . | . . . . Largest Group . | . . . . Highest-Rated Group . | . . . . Highest-Rated Ally . | . . . . Total Orders . | . . . . Ally Attacks . | . . . . Total Damage . | . . . . Kills . | . . . . Allies Corrupted . | . . . . Allies Melted . | . . . . Intel | -11 -10 -10 -9 ------- Run | Yrd Mat Min Mat Robot Analysis Total . | . . . . Derelict Logs Recovered . | . . . . Drone Launches . | . . . . Drone Recoveries . | . . . . Exploration | -11 -10 -10 -9 ------------- Run | Yrd Mat Min Mat Turns Passed 1457 | 365 274 259 559 Spaces Moved 558 | 90 132 132 204 Core 21 | 13 . . 8 Treads 450 | 77 132 132 109 Legs 23 | . . . 23 Wheels 64 | . . . 64 Hover . | . . . . Flight . | . . . . Fastest Speed 50 | 50 160 160 95 Average Speed 154 | 147 160 160 151 Slowest Speed 450 | 160 160 160 450 Overloaded Moves . | . . . . Propulsion Burnouts . | . . . . Robots Hopped . | . . . . Cave-ins Triggered 1 | . . . 1 Exploration Rate (%) 20 | 12 21 28 22 Regions Visited 3 Branch Regions 1 Pre-discovered Areas . | . . . . Known Exits Taken . | . . . . Unknown Exits Taken 3 | 1 1 1 . Scrap Searched . | . . . . Spaces Dug . | . . . . Terrain Destroyed 27 | . . . 27 Melee . | . . . . Projectile . | . . . . AOE 27 | . . . 27 Terrain Rammed . | . . . . Walls Destroyed . | . . . . Machines Disabled . | . . . . Actions | -11 -10 -10 -9 --------- Run | Yrd Mat Min Mat Total 984 | 320 158 154 352 Wait 231 | 213 2 . 16 Move 555 | 89 131 131 204 Hop . | . . . . Pick Up 33 | 10 3 4 16 Fast Attach . | . . . . Attach 23 | 6 2 1 14 Detach 1 | . . . 1 Swap 13 | 1 . . 12 Drop 11 | . 1 . 10 Fire 86 | 1 19 11 55 Melee . | . . . . Ram 1 | . . . 1 Kick 23 | . . . 23 Crush 7 | . . 7 . Escape Stasis . | . . . . Rewire . | . . . . Trap . | . . . . Miscellaneous . | . . . . Route ------- -11/Scrapyard -10/Materials -10/Mines -9/Materials History --------- Turn | Location | Event 14 | -11/Scrapyard | Discovered new exit (range 16) 366 | -11/Scrapyard | Entered Materials 366 | -10/Materials | Discovered new exit (range 8) 367 | -10/Materials | Build established: Mutant 640 | -10/Materials | Entered Mines 671 | -10/Mines | Met a Derelict bent on vengeance 877 | -10/Mines | Discovered new exit (range 13) 899 | -10/Mines | Entered Materials 899 | -9/Materials | Evolved 2 slots: Power x1, Utility x1 1335 | -9/Materials | Lost 5 parts (2p2n1u) 1393 | -9/Materials | Core integrity fell below 50% 1441 | -9/Materials | Core integrity fell below 20% 1458 | -9/Materials | Crushed by falling debris 1458 | -9/Materials | System corruption reached 10% 1458 | -9/Materials | Destroyed by Y-45 Defender with Beam Rifle Last Messages --------------- 01435_ Acquired Grenade Launcher. 01435_ Ion Engine destroyed. 01440_ Y-45 Defender destroyed. 01441_ Mni. Grenade Launcher destroyed. 01445_ R-06 Scavenger collects Lgt. Armor Plating. 01449_ U-05 Engineer lays Concrete. 01450_ R-06 Scavenger collects Imp. Ion Engine. 01451_ U-05 Engineer lays Concrete. 01454_ Lrg. Matter Pod destroyed. 01454_ Destroyed Lrg. Matter Pod. 01454_ U-05 Engineer lays Concrete. 01458_ The unstable cave ceiling collapses. 01458_ Crushed by falling debris. 01458_ Wheel destroyed. 01458_ System corrupted by crushing effect (+2). 01458_ Ion Engine destroyed. 01458_ System corrupted by crushing effect (+5). 01458_ Grenade Launcher destroyed. 01458_ System corrupted by crushing effect (+4). Map ----- +----------------------------------------------------+ | ?????????????????????? """"" """"" | | ???????????????????????" """"""""" """""" | | ???????????????????????T """ """ """ " | | ???????????????????????" | | ??????????????????????? | | ????????????????????????? =% | | ?????????????????????????????####% | | ???????????????????????????????##% ##########+# | | ????????????????????????????????#* %##??????????? | | ????????????????????????????????# #???????????? | | ????????????????????????????????# #???????????? | | ????????????????????????????????# #???????????? | | ????????????????????????????????# #???????????? | | ????????????????????????????????# % #####???????? | | ??????????????????###+##????????# #???????? | | ??????????????##### ######### =#???????? | | ??????????????? !!#???????? | | ???????????????? % #???????? | | ????????????????? !!#???????? | | ??????????????????# ########## !!#???????? | | ??????????????????## # ???????# ###########?? | | ??????????????????# ???????# # #?? | | ??????????????????# ######### # """ """ #?? | | ??????????????????# Y # # "T" """ #?? | | ??????????????????# # # """ #?? | | ?????????########## @ # + % #?? | | ????????# =! # # # #?? | | ????????# ^=! r # # % #?? | | ???????? =! % # # % #?? | | ?????????? ##^ # ######## ##?? | | ????????????# =] + #????? ####?? | | ????????????# = ]# # #?????? ###?? | | ????????????# =u]##########% #?????? #???? | | ????????????#! uT#???????#% #???????#???? | | ????????????# """ ##???????#=* #???????????? | | ????????????# """ #????????# #???????????? | | ????????????+ """ #????????# #???????????? | | ????????????#?? #????????# +???????????? | | ??????????????? #????????# #???????????? | | ?????????????? #????????# #???????????? | | ??????????????####### #????????# #???????????? | | ????????????????????# #????????# #???????????? | | ????????????????????# #????????# #???????????? | | ????????????????????# #????????? ???????????? | | ???????????????????? ?????????? ???????????? | | ???????????????????? ?????????? %???????????? | | ????????????????????? ?????????? ????????????? | | ?????????????????????????????????????????????????? | | ?????????????????????????????????????????????????? | | ?????????????????????????????????????????????????? | +----------------------------------------------------+ Best States ------------- Heat Dissipation 28 Energy Generation 23 Energy Capacity 400 Matter Stores 450 Matter Capacity 450 Sight Range 16 Terrain Scan Density 10 Additional Mass Support 6 Armor Coverage 150 Evasion (%) 50 Recoil Reduction 2 Item Schematics ----------------- None Robot Schematics ------------------ None Fabricated ------------ Nothing Alien Tech Used ----------------- None Achievements -------------- None Challenges ------------ None Game ------ Seed PowerProjectionOptics Manual? 0 Play Time 00:18:14 Cumulative 3.1 hours Start 2024.05.08 @ 00:08:13 End 2024.05.08 @ 01:15:20 Sessions 1 Manual Loads 0 Difficulty Rogue Special Mode None Game No. 9 Rogue 9 Adventurer 0 Explorer 0 Win Type - Total 0 Types 0/0/0/0/0/0/0/0/0 Lore% 1 Gallery% 7 Achievement% 6 Wizard Run 0 Options --------- Layout 1 ASCII 0 Keyboard 0 Movement Mouse Keybinds 0 Fullscreen 2 Font 32/SmallcapsGlow Map View 50x35 Zoom Use 0% Tactical HUD 1 Map Filters NONE Filters NONE Steam 1 RUN: 0d75916d-c3c8-4817-aaa5-2fce1a37e2ec